[Event "2nd Sharjah Masters 2018"]
[Site "Sharjah"]
[Date "2018.04.14"]
[Round "4"]
[White "Mahitosh Dey"]
[Black "Assaubayeva, Bibisara"]
[Result "0-1"]
[ECO "C45"]
[WhiteElo "1913"]
[BlackElo "2359"]
[Annotator "NA"]
[PlyCount "86"]
[EventDate "2018.??.??"]
[EventType "swiss"]
[EventCountry "UAE"]
[SourceTitle "playchess.com"]
[Source "ChessBase"]
[SourceQuality "1"]
[TimeControl "5400+30"]

1. e4 {[%emt 0:00:00]} e5 {[%emt 0:00:06]} 2. Nf3 {[%emt 0:00:00]} Nc6 {[%emt 0:00:08]} 3. d4 {[%emt 0:00:00]} exd4 {[%emt 0:00:11]} 4. Nxd4 {[%emt 0:00:00]} Nf6 {[%emt 0:00:13]} 5. Nxc6 {[%emt 0:00:00]} bxc6 {[%emt 0:00:15]} 6. e5 {[%emt 0:00:00]} Qe7 {[%emt 0:00:11]} 7. Qe2 {[%emt 0:00:00]} Nd5 {[%emt 0:00:15]} 8. c4 {[%emt 0:00:00]} Ba6 {[%emt 0:00:12]} 9. Nd2 {[%emt 0:00:06]} g6 {[%emt 0:00:48]} 10. Nf3 {[%emt 0:00:06] C45: Scotch Game} Qb4+ {[%emt 0:01:27]} 11. Kd1 {[%emt 0:00:06]} Bg7 {[%emt 0:02:17]} (11... Rb8 12. Qc2 Ne7 13. a3 Qb6 14. b4 c5 15. Bd3 cxb4 16. axb4 Bb7 17. b5 Bg7 {½-½ (30) Ponkratov,P (2613)-Svidler,P (2765) Riadh 2017}) 12. Qc2 {[%emt 0:01:58]} Nb6 {[%emt 0:02:50]} 13. Bd2 $146 {[%emt 0:03:29]} ({Predecessor:} 13. b3 O-O 14. Bb2 d5 15. cxd5 Bxf1 16. Rxf1 Rfd8 17. Ke2 Nxd5 {0-1 (37) Nestorovic,N (2464)-Blagojevic,D (2524) Skopje 2011}) 13... Qe7 {[%emt 0:02:06]} 14. Bg5 {[%emt 0:01:10]} Qe6 {[%emt 0:02:14]} 15. b3 {[%emt 0:01:03]} O-O {[%emt 0:04:51]} 16. Bd3 {[%emt 0:04:43]} d6 {[%emt 0:02:37]} 17. Re1 {[%emt 0:08:25]} dxe5 {[%emt 0:01:35]} 18. Re2 {[%emt 0:02:00]} Nd7 {[%emt 0:02:57]} 19. Ke1 {[%emt 0:02:23]} f5 {[%emt 0:02:52]} 20. Rd1 {[%emt 0:09:19]} e4 {[%emt 0:05:01]} 21. Bf4 {[%emt 0:03:35]} (21. Bxe4 {might work better.} fxe4 22. Rxe4) 21... Nc5 {[%emt 0:02:01]} 22. Ng5 {[%emt 0:03:38]} Qf6 {[%emt 0:02:42]} 23. Bxe4 $19 {[%emt 0:00:43]} Nxe4 {[%emt 0:01:52]} 24. Nxe4 {[%emt 0:00:15]} fxe4 {[%emt 0:00:04]} 25. Rxe4 {[%emt 0:00:02]} Bc8 {[%emt 0:02:26]} 26. Be5 {[%emt 0:01:17]} Qf7 {[%emt 0:01:32]} 27. Bxg7 {[%emt 0:00:07]} Qxg7 {[%emt 0:01:52]} 28. Qe2 {[%emt 0:00:05]} Bf5 {[%emt 0:01:44]} 29. Re7 {[%emt 0:00:16]} Qxe7 {[%emt 0:00:18]} 30. Qxe7 {[%emt 0:00:08]} Rfe8 {[%emt 0:00:13]} 31. Qxe8+ {[%emt 0:00:26]} Rxe8+ {[%emt 0:00:05]} 32. Kd2 {[%emt 0:00:15]} Rd8+ {[%emt 0:00:08]} 33. Ke2 {[%emt 0:00:05]} Rxd1 {[%emt 0:00:17]} 34. Kxd1 {[%emt 0:00:03]} c5 {[%emt 0:00:29]} 35. Kd2 {[%emt 0:00:04]} Kf7 {[%emt 0:03:07]} 36. Kc3 {[%emt 0:00:08]} Ke6 {[%emt 0:00:00]} 37. f4 {[%emt 0:00:35]} Be4 {[%emt 0:00:00]} 38. g3 {[%emt 0:00:12]} Kf5 {[%emt 0:00:00]} 39. b4 {[%emt 0:00:05]} cxb4+ {[%emt 0:00:00]} 40. Kxb4 {[%emt 0:00:02]} Kg4 {[%emt 0:00:00]} 41. Kb5 {[%emt 0:00:06]} Bb7 {[%emt 0:00:36]} 42. a4 {[%emt 0:00:21]} Kh3 {[%emt 0:00:09]} 43. a5 {[%emt 0:00:03]} h5 {[%emt 0:00:13]} 0-1